Cogmind - Beta 13 @@@ ROGUE MODE // 2024.06.16 @ 21:45:38 // Winter2019/RPGLIKE Player: abcdefg Result: Destroyed by G-47 Trooper with Particle Gun Performance ------------- Evolutions (2) 1000 Regions Visited (5) 1000 Robots Destroyed (36) 180 Value Destroyed (833) 833 Prototype IDs (26) 520 Alien Tech Used (0) 0 Bonus (300) 300 TOTAL SCORE: 3833 Bonus ------- Aligned with FarCom 300 Cogmind --------- Core Integrity 0/1200 Matter 300/300 Energy 240/240 System Corruption 0% Temperature Cool (9) Movement Flying (35) Location -8/Materials Parts ------- > --- POWER (2) -------- Nuclear Core > --- PROPULSION (4) --- Cesium-ion Thruster > --- UTILITY (4) ------ Improved Heat Sink Transmission Jammer > --- WEAPON (1) ------- (None) > --- INVENTORY (3) ---- Cloak of Protection Mace Peak State ------------ > --- POWER ------------ Light Deuterium Engine Nuclear Core > --- PROPULSION ------- Flight Unit Flight Unit Flight Unit Cesium-ion Thruster > --- UTILITY ---------- Improved Heat Sink Transmission Jammer Cloak of Protection Improved Medium Armor Plating > --- WEAPON ----------- Mace > --- INVENTORY -------- Flight Unit Improved Medium Armor Plating [Rating: 33] Favorites ----------- Power Heavy Ion Engine Engine Heavy Ion Engine Power Core Light Nuclear Core Propulsion Flight Unit Leg Improved Aluminum Leg Flight Unit Flight Unit Utility Power Shielding Device Transmission Jammer Hackware Hacking Suite Protection Power Shielding Weapon Mace Ballistic Gun Light Assault Rifle Impact Weapon Mace Slashing Weapon Mining Claw Build | -11 -10 -10 -10 -9 -8 ------- Run | Yrd Mat Min Exi Min Mat Slots Evolved 7 | 2 1 1 . 1 2 Power 1 | . . . . 1 . Propulsion 3 | 1 1 1 . . . Utility 3 | 1 . . . . 2 Weapon . | . . . . . . Parts Attached 48 | 4 15 1 1 7 20 Power 8 | 1 2 . . 1 4 Engine 5 | 1 2 . . . 2 Core 3 | . . . . 1 2 Reactor . | . . . . . . Propulsion 14 | 2 5 1 . 1 5 Treads . | . . . . . . Leg 4 | 2 2 . . . . Wheel . | . . . . . . Hover . | . . . . . . Flight 10 | . 3 1 . 1 5 Utility 21 | . 6 . . 4 11 Device 10 | . 2 . . 4 4 Storage . | . . . . . . Processor . | . . . . . . Hackware 1 | . 1 . . . . Protection 10 | . 3 . . . 7 Artifact . | . . . . . . Weapon 5 | 1 2 . 1 1 . Energy Gun . | . . . . . . Energy Cannon . | . . . . . . Ballistic Gun 1 | 1 . . . . . Ballistic Cannon . | . . . . . . Launcher . | . . . . . . Special Weapon . | . . . . . . Impact Weapon 3 | . 1 . 1 1 . Slashing Weapon 1 | . 1 . . . . Piercing Weapon . | . . . . . . Special Melee Weapon . | . . . . . . Unidentified Prototypes 1 | . 1 . . . . Parts Lost 6 | . . . . . 6 Power 1 | . . . . . 1 Propulsion 4 | . . . . . 4 Utility 1 | . . . . . 1 Weapon . | . . . . . . Highest Loss Streak 6 | . . . . . 6 To Critical Strikes . | . . . . . . Average Slot Usage (%) 93 | . 88 . 92 99 97 Engine 13 | . 15 . 12 11 13 Core 2 | . . . . . 6 Leg 8 | . 20 . . . . Flight 30 | . 13 . 50 49 38 Device 14 | . 10 . . 11 20 Protection 10 | . 10 . 12 11 9 Impact Weapon 10 | . 10 . 5 11 9 Slashing Weapon 2 | . 4 . . . . Naked Turns . | . . . . . . Heaviest Build 25 | 4 14 11 11 19 25 Greatest Support 31 | 20 31 21 21 21 27 Greatest Overweight (x) 1 | 1 1 . . . . Average Overweight (x) . | . . . . . . Largest Inventory Capacity 3 | 1 1 1 2 3 3 Average Capacity 1 | 1 1 1 1 2 3 Most Carried 3 | 1 1 1 2 3 3 Average Carried 1 | . . . 1 1 2 Final Capacity 3 | 1 1 1 2 3 3 Final Carried 3 | . 1 . 2 3 2 Class Distribution -------------------- 42% | Mutant 33% | Sprinter 12% | Infiltrator-Sprinter 11% | Scavenger-Sprinter Dominant Class ---------------- Mutant | -10/Materials Mutant | -10/Mines Sprinter | -10/Exiles Sprinter | -9/Mines Sprinter | -8/Materials Resources | -11 -10 -10 -10 -9 -8 ----------- Run | Yrd Mat Min Exi Min Mat Matter Collected 674 | 240 140 . . 109 185 Remotely . | . . . . . . Salvage Created 719 | . 218 . . 99 402 Parts 37 | . 19 . . 3 15 Haulers Intercepted 1 | . 1 . . . . Recyclers Shooed . | . . . . . . Parts Field Recycled . | . . . . . . Retrieved Matter . | . . . . . . Parts Self-Destructed . | . . . . . . Prevented . | . . . . . . Kills | -11 -10 -10 -10 -9 -8 ------- Run | Yrd Mat Min Exi Min Mat Combat Hostiles Destroyed 27 | . 10 . . 5 12 Melee 15 | . 6 . . 2 7 AOE 1 | . . . . . 1 Classes Destroyed 6 | . 5 . . . 1 Hauler 1 | . 1 . . . . Operator 3 | . 1 . . . 2 Watcher 5 | . 1 . . . 4 Swarmer 14 | . 6 . . 3 5 Grunt 9 | . 4 . . 1 4 Sentry 3 | . . . . . 3 Best Kill Streak 4 | . 3 . . 3 4 Combat Bots Only 3 | . 3 . . 3 3 Max Kills in Single Turn 1 | . 1 . . 1 1 Gunslinging . | . . . . . . Exploded 1 | . . . . . 1 Melee 1 | . 1 . . 1 1 Uniques/NPCs Destroyed 1 | . . . . 1 . YI-UF0 (-9/Mines) Combat | -11 -10 -10 -10 -9 -8 -------- Run | Yrd Mat Min Exi Min Mat Hostile Shots Fired 263 | . 65 . . 28 170 Missed 85 | . 20 . . 7 58 Damage Taken 2827 | . 411 . . 362 2054 Core 1981 | . 273 . . 288 1420 Absorbed by Shields . | . . . . . . Redirected to Core 1569 | . 209 . . 231 1129 Redirected to Shielding 120 | . . . . 2 118 Core Remaining (%) 86 | 100 . . . 73 . Volleys Fired . | . . . . . . Largest . | . . . . . . Hottest . | . . . . . . Shots Fired . | . . . . . . Gun . | . . . . . . Cannon . | . . . . . . Launcher . | . . . . . . Special . | . . . . . . Kinetic . | . . . . . . Thermal . | . . . . . . Explosive . | . . . . . . Electromagnetic . | . . . . . . Robot Hit Streak . | . . . . . . Robot Miss Streak . | . . . . . . Penetration Max . | . . . . . . Secondary Targets . | . . . . . . Shots Hit Robots 91 | . 22 . . 11 58 Core Hits 17 | . 7 . . 2 8 Critical Kills 5 | . 1 . . 1 3 Critical Parts Destroyed 16 | . 4 . . 2 10 Critical Strikes 21 | . 5 . . 3 13 Smash 21 | . 5 . . 3 13 Melee Attacks 116 | . 35 . . 14 67 Impact 109 | . 28 . . 14 67 Slashing 7 | . 7 . . . . Piercing . | . . . . . . Sneak Attacks 3 | . 2 . . . 1 Combat Hostiles 1 | . . . . . 1 Follow-up Attacks . | . . . . . . Damage Inflicted 2675 | . 659 . . 368 1648 Guns . | . . . . . . Cannons . | . . . . . . Explosions 110 | . . . . . 110 Melee 2565 | . 659 . . 368 1538 Ramming . | . . . . . . Kinetic . | . . . . . . Thermal . | . . . . . . Explosive 110 | . . . . . 110 Electromagnetic . | . . . . . . Impact 2488 | . 582 . . 368 1538 Slashing 77 | . 77 . . . . Piercing . | . . . . . . Highest Corruption 2 | . 2 2 2 2 . Average Corruption 1 | . 2 2 2 1 . Corruption Purged 2 | . . . . 2 . Corruption Blocked . | . . . . . . Effects 7 | . 2 . 3 2 . Message Errors 2 | . 1 . 1 . . Matter Fused 1 | . . . 1 . . Energy Discharges 2 | . . . 1 1 . Data Loss (minor) 2 | . 1 . . 1 . Overload Shots . | . . . . . . Overflow Damage 721 | . 170 . . 117 434 Projectiles . | . . . . . . Explosions . | . . . . . . Melee 721 | . 170 . . 117 434 Knockbacks 5 | . . . . 1 4 Impact 5 | . . . . 1 4 Kinetic . | . . . . . . Secondary . | . . . . . . Self-Inflicted Damage 96 | . . . . . 96 Shots 1 | . . . . . 1 Rammed . | . . . . . . Targets Rammed . | . . . . . . Kicked . | . . . . . . Crushed . | . . . . . . Highest Temperature 180 | . 3 1 1 8 180 Average Temperature 39 | . 3 1 1 2 53 Received Heat Transfer 741 | . 87 . . 24 630 Siege Activations . | . . . . . . Robots Corrupted . | . . . . . . Combat Hostiles . | . . . . . . Parts Fried 24 | . 6 . . 1 17 Impact Corruptions 37 | . 9 . . 6 22 Robots Melted . | . . . . . . Combat Hostiles . | . . . . . . Parts Melted . | . . . . . . Heat Transferred . | . . . . . . Parts Sabotaged . | . . . . . . Parts Stolen . | . . . . . . Parts Stripped . | . . . . . . Power Chain Reactions . | . . . . . . Alert | -11 -10 -10 -10 -9 -8 ------- Run | Yrd Mat Min Exi Min Mat Peak Influence 389 | . 247 39 . 105 389 Initial 40 | . . 39 . . 40 Average 155 | . 94 39 . 60 274 Maximum Alert Level 1 | . 1 . . . 1 Low Security (%) 62 | 100 78 100 . 100 26 Level 1 37 | . 21 . . . 73 Level 2 . | . . . . . . Level 3 . | . . . . . . Level 4 . | . . . . . . Level 5 . | . . . . . . High Security . | . . . . . . Max Security . | . . . . . . Squads Dispatched 3 | . 1 . . 1 1 Investigation 1 | . . . . 1 . Extermination . | . . . . . . Reinforcement 2 | . 1 . . . 1 Assault . | . . . . . . Garrison . | . . . . . . Intercept . | . . . . . . Searches Triggered . | . . . . . . Construction Impeded . | . . . . . . Haulers Reinforced . | . . . . . . Active Scanning Responses . | . . . . . . Cargo Convoy Interrupts . | . . . . . . Stealth | -11 -10 -10 -10 -9 -8 --------- Run | Yrd Mat Min Exi Min Mat Distress Signals . | . . . . . . Communications Jammed 40 | . . . . . 40 Distress Signals 23 | . . . . . 23 Times Spotted 52 | . 21 . . 6 25 Peak Tracking Total 4 | . 3 . . 3 4 Tactical Retreats 2 | . 1 . . . 1 Traps | -11 -10 -10 -10 -9 -8 ------- Run | Yrd Mat Min Exi Min Mat Traps Triggered 2 | . 1 . . . 1 Indirectly . | . . . . . . Trap Hack Attempts . | . . . . . . Triggered . | . . . . . . Disarmed . | . . . . . . Reprogrammed . | . . . . . . Reused . | . . . . . . Traps Extracted . | . . . . . . Installed 5 | . . . . 5 . Triggered . | . . . . . . Machines | -11 -10 -10 -10 -9 -8 ---------- Run | Yrd Mat Min Exi Min Mat Machines Disabled 2 | . . . . . 2 Max in Single Turn 2 | . . . . . 2 Machines Repaired . | . . . . . . Machines Dismantled . | . . . . . . Machines Sabotaged . | . . . . . . Overloaded Fab Kills . | . . . . . . Hacking | -11 -10 -10 -10 -9 -8 --------- Run | Yrd Mat Min Exi Min Mat Machines Accessed 11 | . 6 . 1 1 3 Terminals 9 | . 6 . . . 3 Fabricators . | . . . . . . Repair Stations . | . . . . . . Recycling Units . | . . . . . . Scanalyzers . | . . . . . . Garrison Access . | . . . . . . Total Hacks 17 | . 10 . 1 1 5 Successful 9 | . 6 . 1 1 1 Failed 8 | . 4 . . . 4 Catastrophic 2 | . . . . . 2 Database Lockouts . | . . . . . . Manual 1 | . . . 1 . . Terminals 15 | . 10 . . . 5 Fabricators . | . . . . . . Repair Stations . | . . . . . . Recycling Units . | . . . . . . Scanalyzers . | . . . . . . Garrison Access . | . . . . . . Terminal Hacks 9 | . 6 . 1 1 1 Prototype ID Bank 1 | . . . . . 1 Open Door 1 | . . . . 1 . Emergency Access Points 3 | . 3 . . . . Terminal Index 1 | . 1 . . . . Alert Level 1 | . 1 . . . . Zone Layout 1 | . 1 . . . . Derelict Proto ID Bank 1 | . . . 1 . . Fabricator Hacks . | . . . . . . Repair Station Hacks . | . . . . . . Recycling Unit Hacks . | . . . . . . Scanalyzer . | . . . . . . Garrison Access Hacks . | . . . . . . Unauthorized Hacks . | . . . . . . Terminals . | . . . . . . Fabricators . | . . . . . . Repair Stations . | . . . . . . Recycling Units . | . . . . . . Scanalyzers . | . . . . . . Garrison Access . | . . . . . . Data Cores Recovered 1 | . . . . . 1 Used . | . . . . . . Hacking Detections 6 | . 3 . . . 3 Full Trace Events 1 | . 1 . . . . Feedback Events . | . . . . . . Feedback Blocked . | . . . . . . Robot Schematics Acquired . | . . . . . . Robots Built . | . . . . . . Authchips . | . . . . . . Time . | . . . . . . Total Robot Build Rating . | . . . . . . Part Schematics Acquired . | . . . . . . Parts Built . | . . . . . . Authchips . | . . . . . . Time . | . . . . . . Total Part Build Rating . | . . . . . . Parts Repaired . | . . . . . . Time . | . . . . . . Parts Recycled . | . . . . . . Recycled Matter . | . . . . . . Retrieved Matter . | . . . . . . Retrieved Components . | . . . . . . Parts Scanalyzed . | . . . . . . Part Schematics Acquired . | . . . . . . Parts Damaged . | . . . . . . Bothacking | -11 -10 -10 -10 -9 -8 ------------ Run | Yrd Mat Min Exi Min Mat Used RIF Installer . | . . . . . . Robots Hacked . | . . . . . . Non-combat . | . . . . . . Combat . | . . . . . . Robot Hacks Applied . | . . . . . . Relay Couplers Released . | . . . . . . Fabnet Peak Effective % . | . . . . . . Robots Rewired . | . . . . . . Allies Hacked . | . . . . . . Hacks Repelled . | . . . . . . Allies | -11 -10 -10 -10 -9 -8 -------- Run | Yrd Mat Min Exi Min Mat Total Allies . | . . . . . . Largest Group . | . . . . . . Highest-Rated Group . | . . . . . . Highest-Rated Ally . | . . . . . . Total Orders . | . . . . . . Ally Attacks . | . . . . . . Total Damage . | . . . . . . Kills . | . . . . . . Allies Corrupted . | . . . . . . Allies Melted . | . . . . . . Intel | -11 -10 -10 -10 -9 -8 ------- Run | Yrd Mat Min Exi Min Mat Robot Analysis Total . | . . . . . . Derelict Logs Recovered 2 | . . . . 2 . Drone Launches . | . . . . . . Drone Recoveries . | . . . . . . Exploration | -11 -10 -10 -10 -9 -8 ------------- Run | Yrd Mat Min Exi Min Mat Turns Passed 2050 | 53 818 7 68 340 764 Spaces Moved 2823 | 42 984 17 209 620 951 Core 9 | 9 . . . . . Treads . | . . . . . . Legs 362 | 33 329 . . . . Wheels . | . . . . . . Hover . | . . . . . . Flight 2452 | . 655 17 209 620 951 Fastest Speed 29 | 50 34 31 31 31 29 Average Speed 43 | 108 64 31 31 31 29 Slowest Speed 130 | 120 130 34 31 31 35 Overloaded Moves . | . . . . . . Propulsion Burnouts . | . . . . . . Robots Hopped 7 | . 2 . . 1 4 Cave-ins Triggered . | . . . . . . Exploration Rate (%) 56 | 3 98 14 60 92 69 Regions Visited 5 Branch Regions 3 Pre-discovered Areas . | . . . . . . Known Exits Taken . | . . . . . . Unknown Exits Taken 5 | 1 1 1 1 1 . Scrap Searched 2 | . . . . 2 . Spaces Dug . | . . . . . . Terrain Destroyed 19 | . . . . . 19 Melee . | . . . . . . Projectile . | . . . . . . AOE 19 | . . . . . 19 Terrain Rammed . | . . . . . . Walls Destroyed . | . . . . . . Machines Disabled . | . . . . . . Actions | -11 -10 -10 -10 -9 -8 --------- Run | Yrd Mat Min Exi Min Mat Total 3445 | 49 1109 17 212 742 1316 Wait 332 | . 27 . . 75 230 Move 2804 | 41 979 16 208 617 943 Hop 7 | . 2 . . 1 4 Pick Up 49 | 4 20 . 1 8 16 Fast Attach . | . . . . . . Attach 26 | 4 9 1 1 4 7 Detach 5 | . . . 2 1 2 Swap 22 | . 6 . . 3 13 Drop 36 | . 17 . . 4 15 Fire . | . . . . . . Melee 116 | . 35 . . 14 67 Ram . | . . . . . . Kick . | . . . . . . Crush . | . . . . . . Escape Stasis . | . . . . . . Rewire . | . . . . . . Trap 5 | . . . . 5 . Miscellaneous 43 | . 14 . . 10 19 Route ------- -11/Scrapyard -10/Materials (discovered 5 exits: [*Mat x3] / [*Min x2]) -10/Mines -10/Exiles -9/Mines (discovered 2 exits: *Mat x2) -8/Materials (discovered 2 exits: [*Fac x2]) History --------- Turn | Location | Event 1 | -11/Scrapyard | Upgraded with Propulsion slot (x1) 1 | -11/Scrapyard | Upgraded with Utility slot (x1) 13 | -11/Scrapyard | Discovered new exit (range 14) 54 | -11/Scrapyard | Entered Materials 104 | -10/Materials | Discovered new exit (range 7) 158 | -10/Materials | Discovered new exit (range 6) 303 | -10/Materials | Build established: Mutant 309 | -10/Materials | Discovered new exit (range 11) 459 | -10/Materials | Discovered new exit (range 16) 662 | -10/Materials | Discovered new exit (range 4) 817 | -10/Materials | Upgraded with Propulsion slot (x1) 872 | -10/Materials | Entered Mines 874 | -10/Mines | Reached level 2 874 | -10/Mines | Upgraded with Propulsion slot (x1) 877 | -10/Mines | Deemed a non-threat by the Exiles lab entrance 877 | -10/Mines | Discovered new exit (range 5) 879 | -10/Mines | Entered Exiles 887 | -10/Exiles | Met 8R-AWN 893 | -10/Exiles | Met EX-HEX 901 | -10/Exiles | Met EX-BIN 905 | -10/Exiles | Aligned with FarCom system 905 | -10/Exiles | Given EX-Vault access code 913 | -10/Exiles | Opened EX-Vault 915 | -10/Exiles | Found Cloak of Protection 923 | -10/Exiles | Warned to stay clear of 0b10 Research branches 932 | -10/Exiles | Met EX-DEC 943 | -10/Exiles | Discovered new exit (range 10) 947 | -10/Exiles | Left Exiles lab with Cloak of Protection 947 | -10/Exiles | Entered Mines 952 | -9/Mines | Met a Derelict shopkeep closing up shop 996 | -9/Mines | Learned 2 Materials zone layouts 1067 | -9/Mines | Found a hidden stash of uninstalled traps 1088 | -9/Mines | YI-UF0 nonchalantly dropped a Grenade Launcher on the ground 1105 | -9/Mines | Assembled infested the area 1124 | -9/Mines | Learned 2 Materials zone layouts 1165 | -9/Mines | Build established: Sprinter 1236 | -9/Mines | Destroyed YI-UF0 1245 | -9/Mines | Discovered new exit (range 15) 1259 | -9/Mines | Reached level 3 1261 | -9/Mines | Upgraded with Power slot (x1) 1280 | -9/Mines | Discovered new exit (range 12) 1287 | -9/Mines | Entered Materials 1289 | -8/Materials | Reached level 4 1289 | -8/Materials | Upgraded with Utility slot (x1) 1321 | -8/Materials | Core integrity fell below 50% 1624 | -8/Materials | Discovered new exit (range 10) 1909 | -8/Materials | Reached level 5 1913 | -8/Materials | Core integrity fell below 20% 1921 | -8/Materials | Upgraded with Utility slot (x1) 1974 | -8/Materials | Discovered new exit (range 16) 2051 | -8/Materials | Destroyed by G-47 Trooper with Particle Gun Last Messages --------------- 02031_ Flight Unit destroyed. 02032_ H-61 Shepherd call for reinforcements jammed. 02035_ Flight Unit destroyed. 02035_ Knocked back. 02036_ Dropped Imp. Medium Armor Plating. 02037_ H-61 Shepherd call for reinforcements jammed. 02040_ H-61 Shepherd misfires. 02042_ H-61 Shepherd call for reinforcements jammed. 02043_ R-06 Scavenger collects Wheel. 02045_ H-61 Shepherd call for reinforcements jammed. 02045_ Mace blasted off. 02047_ R-06 Scavenger collects Welding Torch. 02049_ U-05 Engineer builds a Wall. 02050_ Acquired Mace. 02051_ H-61 Shepherd IFF system glitched. 02051_ Knocked back. Map ----- +----------------------------------------------------+ | | | | | | | | | | | | | | | | | | | | | | | | | | | ??????????????????###???###########?????????? | | ?????????????????T" ???# #?????????? | | ????????????????? ???# ! ""#?????????? | | ????????????????? ? ?# T"#?????????? | | ????????????????? ?# """ ""#?????????? | | ????????????????? ?# """ #?????##### | | ????????????????""" """?# """ % !#?????#!!!! | | ????????????????""" """?# #?????# !! | | ?????????????????"" ""??# #?????# | | ???????????????####;######+############## | | ???????????????# ^ g % k k | | ???????????????# < g% % % | | ???????????????# H @ u r | | ???????????????##;#;;#####+###############+ | | ???????????????? % #????????????# % | | ???????????????? #????????????# = | | ??????????????? #????????????#"" % | | ??????????????# #????????????#"" % | | ??????????????# "????????????#"S | | ??????????????# ##???????????#"" | | ??????????????# #????????????# | | ??????????????# #????????????# | | ??????????????###########????????????#### #+# | | ????????????????????????????????????????# | | ????????????????????????????????????????# | | ????????????????????????????????????????# | | ?????????????????????????Y??????????????# | | ????????????????????????????????????????# | | ????????????????????????????????????????# | | ????????????????????????????????????????##### | | ????????????????????????????????????????????? | | ????????????????????????????????????????????? | | ????????????????????????????????????????????? | | ????????????????????????????????????????????? | | ????????????????????????????????????????????? | | ????????????????????????????????????????????? | | ????????????????????????????????????????????? | +----------------------------------------------------+ Best States ------------- Heat Dissipation 39 Energy Generation 23 Energy Capacity 340 Matter Stores 300 Matter Capacity 300 Sight Range 16 Terrain Scan Density 10 Jamming Range 12 Cloak Strength 5 Armor Coverage 300 Power Shielding 33 Propulsion Shielding 66 Evasion (%) 64 Offensive Hacking 10 Item Schematics ----------------- None Robot Schematics ------------------ None Fabricated ------------ Nothing Alien Tech Used ----------------- None Achievements -------------- Batter Up No Signal Total Silence Challenges ------------ None RPGLIKE | -11 -10 -10 -10 -9 -8 --------- Run | Yrd Mat Min Exi Min Mat Levels Raised 4 | . . 1 . 1 2 XP Earned 9310 | 3000 1270 500 350 950 3240 XP Spent 8960 | 1250 1400 1100 500 1250 3460 Upgrades 26 | 3 4 1 1 2 15 Power Slot 1 | . . . . 1 . Propulsion Slot 3 | 1 1 1 . . . Utility Slot 3 | 1 . . . . 2 Core Integrity 12 | . . . . . 12 Mass Support 2 | . 1 . . . 1 Inventory Capacity 3 | 1 . . 1 1 . Melee Accuracy 2 | . 2 . . . . Protomatter Created 268 | . 87 . . 56 125 Integrity Restored 800 | . 257 . . 168 375 Core 778 | . 235 . . 168 375 Parts 22 | . 22 . . . . Protomatter Decayed 51 | . . . . 37 14 Game ------ Seed BlastTacticalStabilizer Manual? 0 Play Time 00:40:47 Cumulative 22.0 hours Start 2024.06.16 @ 21:07:22 End 2024.06.16 @ 21:45:38 Sessions 1 Manual Loads 0 Difficulty Rogue Special Mode Winter2019/RPGLIKE Game No. 33 Rogue 33 Adventurer 0 Explorer 0 Win Type - Total 0 Types 0/0/0/0/0/0/0/0/0 Lore% 25 Gallery% 25 Achievement% 23 Wizard Run 0 Options --------- Layout 1 ASCII 0 Keyboard 0 Movement Mouse Keybinds 0 Fullscreen 1 Font 24/Smallcaps Map View 50x35 Zoom Use 0% Tactical HUD 1 Map Filters NONE Filters NONE Steam 1 RUN: 946bd987-7ab8-42a4-8a1c-7b07890432a8